fUST/lending_fUST_20240910
["ID","MTS","AMOUNT","RATE_DAILY","PERIOD"]
[337639021,1725904239504,-796.27633121,0.00029281,2]
[337639022,1725904239514,-796.27633121,0.00029281,2]
[337639023,1725904239524,-259.18,0.00029282,2]
[337639024,1725904239534,-259.18,0.00029282,2]
[337639025,1725904239544,-259.18,0.00029282,2]
[337639026,1725904239556,-259.18,0.00029282,2]
[337639027,1725904239566,-259.18,0.00029282,2]
[337639028,1725904239577,-259.18,0.00029282,2]
[337639029,1725904239587,-259.18,0.00029282,2]
[337639030,1725904239596,-259.18,0.00029282,2]
[337639031,1725904239607,-259.18,0.00029282,2]
[337639032,1725904239618,-259.18,0.00029282,2]
[337639033,1725904239628,-3327.28648892,0.00029283,2]
[337639034,1725904239640,-116366.90845534,0.00029283,2]
[337639035,1725904239651,-3327.2864889,0.00029305,2]
[337639036,1725904239673,-1718.63,0.00029318,3]
[337639037,1725904239684,-166.666666,0.00029325,2]
[337639038,1725904239694,-3327.2864889,0.00029328,2]
[337639039,1725904239704,-500.0,0.00029331,2]
[337639040,1725904239715,-304.09846118,0.00029331,2]
[337639041,1725904239725,-500.0,0.00029331,2]
[337639042,1725904239736,-397.55736155,0.00029331,2]
[337639043,1725904239747,-253.8228785,0.00029331,2]
[337639044,1725904239760,-500.0,0.00029331,2]
[337639045,1725904239770,-3327.2864889,0.0002935,2]
[337639046,1725904239780,-5353.30528835,0.00029362,2]
[337639047,1725904239790,-1000.0,0.0002937,2]
[337639048,1725904239800,-585.73711432,0.00029371,2]
[337639050,1725904239811,-3327.2864889,0.00029372,2]
[337639052,1725904239821,-343826.165197,0.00029373,4]
[337639054,1725904239832,-9115.21436132,0.00029373,4]
[337639055,1725904239843,-171913.082598,0.0002946,4]
[337639056,1725904239853,-22788.0359033,0.0002946,4]
[337639057,1725904239863,-9115.21436132,0.00029462,4]
[337639058,1725904239874,-194.78,0.00029472,120]
[337639059,1725904239886,-151.0,0.00029472,7]
[337639061,1725904239897,-4171.440425,0.00029472,7]
[337639062,1725904239909,-4171.440425,0.00029472,7]
[337639063,1725904239920,-483.137301,0.00029472,7]
[337639064,1725904239931,-483.137301,0.00029472,7]
[337639065,1725904239942,-500.53596247,0.00029473,5]
[337639067,1725904239957,-500.0,0.00029473,5]
[337639068,1725904239970,-304.55000664,0.00029473,5]
[337639072,1725904239983,-160.0,0.00029473,5]
[337639075,1725904239994,-159.27092859,0.00029473,5]
[337639077,1725904240004,-500.0,0.00029473,5]
[337639078,1725904240014,-268.97058416,0.00029473,5]
[337639080,1725904240025,-9115.21436132,0.0002948,4]
[337639081,1725904240035,-2000.0,0.00029481,2]
[337639083,1725904240045,-2068.80898226,0.00029481,2]
[337639085,1725904240055,-152.328802,0.0002949,7]
[337639087,1725904240066,-151.0,0.0002949,7]
[337639088,1725904240076,-151.0,0.0002949,7]
[337639090,1725904240087,-151.0,0.0002949,2]
[337639092,1725904240097,-371.187776,0.0002949,7]
[337639094,1725904240106,-371.187776,0.0002949,7]
[337639096,1725904240117,-4557.60718066,0.0002949,4]
[337639097,1725904240127,-18230.4287226,0.00029492,4]
[337639098,1725904240137,-502.1,0.000295,14]
[337639099,1725904240148,-31034.11,0.000295,14]
[337639100,1725904240157,-2264.4,0.000295,7]
[337639101,1725904240167,-150.112233,0.000295,9]
[337639102,1725904240178,-150.112233,0.000295,7]
[337639103,1725904240189,-150.112233,0.000295,6]
[337639104,1725904240199,-150.112233,0.000295,6]
[337639105,1725904240210,-150.112233,0.000295,7]
[337639106,1725904240221,-150.112233,0.000295,8]
[337639107,1725904240233,-150.112233,0.000295,10]
[337639108,1725904240247,-150.112233,0.000295,5]
[337639109,1725904240257,-150.112233,0.000295,7]
[337639110,1725904240267,-240.549338,0.000295,6]
[337639111,1725904240278,-162610.06856268,0.00029502,2]
[337639112,1725904240293,-151.0,0.00029502,7]
[337639113,1725904240303,-171.225568,0.00029502,7]
[337639114,1725904240315,-151.0,0.00029502,2]
[337639115,1725904240326,-371.187776,0.00029502,7]
[337639116,1725904240336,-371.187776,0.00029502,7]
[337639117,1725904240347,-151.0,0.00029502,7]
[337639118,1725904240356,-151.0,0.00029502,7]
[337639119,1725904240366,-152.889851,0.00029502,7]
[337639120,1725904240376,-305.011856,0.00029502,7]
[337639121,1725904240387,-305.011856,0.00029502,7]
[337639122,1725904240397,-1610.272842,0.00029502,7]
[337639123,1725904240407,-1610.272842,0.00029502,7]
[337639124,1725904240417,-151.0,0.00029502,7]
[337639125,1725904240427,-3746.848215,0.00029502,7]
[337639126,1725904240437,-3746.848215,0.00029502,7]
[337639127,1725904240447,-151.0,0.00029502,7]
[337639128,1725904240458,-151.0,0.00029502,7]
[337639129,1725904240467,-151.0,0.00029502,7]
[337639130,1725904240477,-151.0,0.00029502,7]
[337639131,1725904240489,-4171.440425,0.00029502,7]
[337639132,1725904240498,-151.762696,0.00029502,7]
[337639133,1725904240508,-4171.440425,0.00029502,7]
[337639134,1725904240518,-151.762696,0.00029502,7]
[337639135,1725904240528,-151.0,0.00029502,7]
[337639136,1725904240538,-465.744916,0.00029502,7]
[337639137,1725904240548,-465.744916,0.00029502,7]
[337639138,1725904240558,-389.313991,0.00029502,7]
[337639139,1725904240568,-151.0,0.00029502,7]
[337639140,1725904240579,-389.313991,0.00029502,7]
[337639141,1725904240589,-151.0,0.00029502,7]
[337639142,1725904240601,-151.0,0.00029502,7]
[337639143,1725904240611,-152.646701,0.00029502,7]
[337639144,1725904240622,-483.137301,0.00029502,7]
[337639145,1725904240632,-483.137301,0.00029502,7]
[337639146,1725904240642,-184.944685,0.00029502,7]
[337639147,1725904240652,-184.944685,0.00029502,7]
[337639148,1725904240663,-500.0,0.00029518,2]
[337639149,1725904240673,-500.0,0.00029518,2]
[337639150,1725904240683,-500.0,0.00029518,5]
[337639152,1725904240694,-500.0,0.00029518,5]
[337639154,1725904240704,-150.0,0.00029565,2]
[337639155,1725904240713,-500.0,0.00029567,5]
[337639158,1725904240723,-500.0,0.00029567,5]
[337639160,1725904240738,-434.0679777,0.00029567,5]
[337639162,1725904240748,-150.112233,0.000296,6]
[337639164,1725904240758,-150.112233,0.000296,6]
[337639166,1725904240768,-150.112233,0.000296,5]
[337639168,1725904240778,-150.112233,0.000296,8]
[337639170,1725904240788,-150.112233,0.000296,7]
[337639172,1725904240798,-150.112233,0.000297,9]
[337639175,1725904240808,-150.112233,0.000297,10]
[337639177,1725904240818,-420.0,0.00029728,2]
[337639179,1725904240828,-501.66479479,0.00029773,5]
[337639181,1725904240838,-500.0,0.00029773,5]
[337639183,1725904240849,-500.0,0.00029773,5]
[337639185,1725904240862,-500.0,0.00029773,5]
[337639187,1725904240872,-500.0,0.00029773,5]
[337639189,1725904240882,-18230.4287226,0.0002979,4]
[337639191,1725904240893,-799498.20381468,0.000298,2]
[337639227,1725904241218,-159994.24671683,0.000298,2]
[337639229,1725904241229,-1267.29,0.000298,14]
[337639231,1725904241244,-222.42,0.000298,14]
[337639234,1725904241255,-151.0,0.000298,7]
[337639236,1725904241264,-152.908663,0.000298,7]
[337639238,1725904241275,-150.112235,0.000298,6]
[337639240,1725904241285,-152.065709,0.000298,7]
[337639242,1725904241295,-151.0,0.000298,7]
[337639244,1725904241304,-371.187776,0.000298,7]
[337639246,1725904241314,-371.187776,0.000298,7]
[337639248,1725904241326,-151.0,0.000298,7]
[337639250,1725904241335,-151.0,0.000298,7]
[337639252,1725904241344,-305.011856,0.000298,7]
[337639254,1725904241355,-305.011856,0.000298,7]
[337639256,1725904241365,-1610.272842,0.000298,7]
[337639258,1725904241376,-1610.272842,0.000298,7]
[337639260,1725904241386,-529.47506892,0.000298,5]
[337639262,1725904241397,-151.0,0.000298,7]
[337639264,1725904241407,-500.0,0.000298,5]
[337639266,1725904241417,-3746.848215,0.000298,7]
[337639268,1725904241427,-3746.848215,0.000298,7]
[337639271,1725904241438,-151.0,0.000298,7]
[337639273,1725904241450,-151.0,0.000298,7]
[337639275,1725904241460,-151.0,0.000298,7]
[337639277,1725904241471,-151.0,0.000298,7]
[337639279,1725904241484,-4171.440425,0.000298,7]
[337639281,1725904241497,-151.762696,0.000298,7]
[337639283,1725904241506,-4171.440425,0.000298,7]
[337639285,1725904241516,-151.762696,0.000298,7]
[337639287,1725904241525,-151.0,0.000298,7]
[337639290,1725904241535,-465.744916,0.000298,7]
[337639292,1725904241545,-465.744916,0.000298,7]
[337639294,1725904241555,-389.313991,0.000298,7]
[337639296,1725904241564,-151.0,0.000298,7]
[337639298,1725904241574,-389.313991,0.000298,7]
[337639300,1725904241584,-151.0,0.000298,7]
[337639302,1725904241594,-483.137301,0.000298,7]
[337639304,1725904241604,-483.137301,0.000298,7]
[337639306,1725904241614,-184.944685,0.000298,7]
[337639308,1725904241624,-184.944685,0.000298,7]
[337639310,1725904241634,-388.30388316,0.0003,10]
[337639312,1725904241645,-7862.02795895,0.0003,10]
[337639314,1725904241654,-1500.0,0.0003,2]
[337639316,1725904241664,-5487.88596476,0.0003,120]
[337639318,1725904241673,-1500.0,0.0003,2]
[337639320,1725904241682,-151.0,0.0003,120]
[337639322,1725904241692,-151.0,0.0003,120]
[337639326,1725904241715,-248.0,0.0003,2]
[337639328,1725904241726,-1500.0,0.00030075,2]
[337639330,1725904241742,-500.0,0.00030137,2]
[337639332,1725904241753,-500.0,0.00030137,2]
[337639334,1725904241762,-500.0,0.00030137,2]
[337639336,1725904241772,-500.0,0.00030137,2]
[337639338,1725904241782,-500.0,0.00030137,2]
[337639339,1725904241794,-500.0,0.00030137,2]
[337639340,1725904241805,-500.0,0.00030137,2]
[337639341,1725904241815,-500.0,0.00030137,2]
[337639342,1725904241826,-500.0,0.00030137,2]
[337639343,1725904241837,-500.0,0.00030137,2]
[337639344,1725904241847,-500.0,0.00030137,2]
[337639345,1725904241857,-500.0,0.00030137,2]
[337639346,1725904241867,-500.0,0.00030137,2]
[337639347,1725904241877,-500.0,0.00030137,2]
[337639348,1725904241887,-500.0,0.00030137,2]
[337639361,1725904242100,-500.0,0.00030137,2]
[337639363,1725904242111,-500.0,0.00030137,2]
[337639365,1725904242121,-500.0,0.00030137,2]
[337639367,1725904242130,-500.0,0.00030137,2]
[337639369,1725904242139,-610.05412962,0.00030137,2]
[337639371,1725904242149,-500.0,0.00030137,2]
[337639373,1725904242159,-500.0,0.00030137,2]
[337639375,1725904242168,-500.0,0.00030137,2]
[337639377,1725904242177,-500.0,0.00030137,2]
[337639379,1725904242187,-500.0,0.00030137,2]
[337639381,1725904242197,-500.0,0.00030137,2]
[337639384,1725904242207,-500.0,0.00030137,2]
[337639386,1725904242220,-500.0,0.00030137,2]
[337639388,1725904242230,-500.0,0.00030137,2]
[337639390,1725904242245,-500.0,0.00030137,2]
[337639393,1725904242259,-1500.0,0.00030151,2]
[337639395,1725904242269,-1500.0,0.00030226,2]
[337639397,1725904242281,-1500.0,0.00030302,2]
[337639399,1725904242291,-172.163381,0.00030325,2]
[337639401,1725904242301,-1500.0,0.00030377,2]
[337639403,1725904242311,-585.73711429,0.0003045,2]
[337639405,1725904242321,-1500.0,0.00030453,2]
[337639407,1725904242331,-1500.0,0.00030528,2]
[337639409,1725904242341,-1500.0,0.00030604,2]
[337639411,1725904242350,-1718.64,0.00030643,3]
[337639413,1725904242359,-859.32,0.00030643,3]
[337639415,1725904242368,-429.66,0.00030643,3]
[337639417,1725904242378,-186.39360758,0.0003065,2]
[337639419,1725904242388,-3277.92088323,0.00030677,2]
[337639421,1725904242398,-1500.0,0.00030679,2]
[337639423,1725904242407,-3437.26,0.00030688,3]
[337639425,1725904242417,-1500.0,0.00030755,2]
[337639427,1725904242427,-1500.0,0.0003083,2]
[337639429,1725904242437,-1000.0,0.00030888,5]
[337639431,1725904242449,-500.0,0.00030888,5]
[337639434,1725904242459,-1500.0,0.00030906,2]
[337639436,1725904242469,-1000.0,0.00030937,5]
[337639438,1725904242479,-1500.0,0.00030981,2]
[337639440,1725904242489,-31034.11,0.00031,14]
[337639442,1725904242498,-2264.4,0.00031,7]
[337639444,1725904242507,-1500.0,0.00031057,2]
[337639446,1725904242517,-1500.0,0.00031132,2]
[337639448,1725904242527,-500.7970442,0.00031142,5]
[337639450,1725904242537,-310.8157173,0.00031142,5]
[337639452,1725904242546,-852.04877625,0.00031142,5]
[337639454,1725904242557,-203.81585332,0.00031142,5]
[337639456,1725904242566,-1000.0,0.0003117,5]
[337639458,1725904242577,-502.1,0.000312,14]
[337639460,1725904242587,-1500.0,0.00031208,2]
[337639462,1725904242596,-1500.0,0.00031283,2]
[337639464,1725904242606,-1500.0,0.00031358,2]
[337639466,1725904242617,-222.42,0.000314,14]
[337639468,1725904242628,-1500.0,0.00031434,2]
[337639470,1725904242638,-1267.29,0.000315,14]
[337639472,1725904242648,-1500.0,0.00031509,2]
[337639474,1725904242658,-585.73711429,0.00031528,2]
[337639476,1725904242667,-1500.0,0.00031585,2]
[337639478,1725904242677,-1500.0,0.0003166,2]
[337639481,1725904242687,-1500.0,0.00031736,2]
[337639483,1725904242696,-1500.0,0.00031811,2]
[337639485,1725904242706,-1500.0,0.00031887,2]
[337639487,1725904242715,-1500.0,0.00031962,2]
[337639489,1725904242725,-1500.0,0.00032038,2]
[337639491,1725904242734,-1500.0,0.00032113,2]
[337639493,1725904242746,-28865.07030813,0.0003212,10]
[337639495,1725904242756,-151.0,0.0003212,7]
[337639497,1725904242767,-532.579088,0.0003212,7]
[337639499,1725904242776,-532.579088,0.0003212,7]
[337639501,1725904242786,-154.074996,0.0003212,7]
[337639503,1725904242796,-225.466354,0.0003212,7]
[337639506,1725904242806,-225.466354,0.0003212,7]
[337639508,1725904242815,-1500.0,0.00032189,2]
[337639510,1725904242826,-3277.92088323,0.00032193,2]
[337639512,1725904242836,-151.250872,0.00032264,2]
[337639514,1725904242847,-151.0,0.00032264,7]
[337639516,1725904242856,-151.0,0.00032264,7]
[337639519,1725904242866,-151.0,0.00032264,7]
[337639522,1725904242875,-151.0,0.00032264,7]
[337639525,1725904242885,-1500.0,0.00032264,2]
[337639527,1725904242894,-1500.0,0.0003234,2]
[337639530,1725904242904,-31034.11,0.000324,14]
[337639533,1725904242913,-151.0,0.000324,7]
[337639537,1725904242924,-151.0,0.000324,7]
[337639541,1725904242933,-151.0,0.000324,7]
[337639544,1725904242943,-2264.4,0.000324,7]
[337639548,1725904242952,-151.0,0.000324,7]
[337639551,1725904242963,-151.0,0.000324,7]
[337639553,1725904242973,-151.0,0.000324,7]
[337639555,1725904242982,-371.187776,0.000324,7]
[337639558,1725904242992,-371.187776,0.000324,7]
[337639560,1725904243002,-151.0,0.000324,7]
[337639562,1725904243012,-151.0,0.000324,7]
[337639564,1725904243021,-305.011856,0.000324,7]
[337639566,1725904243032,-305.011856,0.000324,7]
[337639568,1725904243041,-1610.272842,0.000324,7]
[337639570,1725904243052,-1610.272842,0.000324,7]
[337639573,1725904243062,-151.0,0.000324,7]
[337639575,1725904243072,-3746.848215,0.000324,7]
[337639577,1725904243083,-3746.848215,0.000324,7]
[337639579,1725904243093,-151.0,0.000324,7]
[337639581,1725904243103,-151.0,0.000324,7]
[337639583,1725904243114,-151.0,0.000324,7]
[337639585,1725904243124,-4171.440425,0.000324,7]
[337639588,1725904243135,-151.762696,0.000324,7]
[337639590,1725904243146,-4171.440425,0.000324,7]
[337639592,1725904243157,-151.762696,0.000324,7]
[337639594,1725904243167,-151.0,0.000324,7]
[337639596,1725904243177,-465.744916,0.000324,7]
[337639598,1725904243186,-465.744916,0.000324,7]
[337639600,1725904243198,-389.313991,0.000324,7]
[337639602,1725904243208,-151.0,0.000324,7]
[337639605,1725904243219,-389.313991,0.000324,7]
[337639607,1725904243230,-151.0,0.000324,7]
[337639609,1725904243243,-483.137301,0.000324,7]
[337639611,1725904243253,-483.137301,0.000324,7]
[337639613,1725904243263,-184.944685,0.000324,7]
[337639615,1725904243272,-184.944685,0.000324,7]
[337639617,1725904243283,-1500.0,0.00032415,2]
[337639619,1725904243292,-1500.0,0.00032491,2]
[337639621,1725904243302,-158.39303,0.00032566,7]
[337639623,1725904243313,-1500.0,0.00032566,2]
[337639625,1725904243324,-585.73711429,0.00032607,2]
[337639627,1725904243333,-1500.0,0.00032642,2]
[337639629,1725904243343,-587.0,0.000327,2]
[337639631,1725904243352,-1500.0,0.00032717,2]
[337639634,1725904243363,-1500.0,0.00032792,2]
[337639636,1725904243373,-1500.0,0.00032868,2]
[337639638,1725904243383,-151.0,0.00032877,14]
[337639640,1725904243394,-151.0,0.00032877,14]
[337639642,1725904243403,-500.0,0.00032877,2]
[337639643,1725904243412,-23250.7463298,0.00032877,2]
[337639645,1725904243421,-153.88,0.0003288,7]
[337639647,1725904243431,-269.38,0.0003288,7]
[337639649,1725904243440,-1500.0,0.00032943,2]
[337639651,1725904243450,-222.42,0.00033,14]
[337639653,1725904243460,-502.1,0.00033,14]
[337639656,1725904243469,-151.0,0.00033,14]
[337639659,1725904243479,-248.0,0.00033,2]
[337639662,1725904243490,-248.0,0.00033,2]
[337639664,1725904243500,-1500.0,0.00033019,2]
[337639665,1725904243509,-1500.0,0.00033094,2]
[337639668,1725904243520,-1500.0,0.0003317,2]
[337639670,1725904243530,-1500.0,0.00033245,2]
[337639672,1725904243540,-1500.0,0.00033321,2]
[337639674,1725904243550,-1500.0,0.00033393,5]
[337639676,1725904243562,-1500.0,0.00033396,2]
[337639678,1725904243571,-1267.29,0.000334,14]
[337639680,1725904243580,-658.39246906,0.00033441,5]
[337639682,1725904243590,-183243.06552657,0.00033471,2]
[337639703,1725904243802,-53465.90465992,0.00033471,2]
[337639750,1725904244256,-151.0,0.00029502,7]
[337639752,1725904244266,-44739.70581666,0.00033471,2]
[337639844,1725904245160,-48.46264923,0.000298,7]
[337642702,1725904596638,709.652545,0.0001,2]
[337642703,1725904705655,5000.0,0.00025,2]
[337642704,1725904714175,5000.0,0.00025,2]
[337642732,1725905432627,-648.297116,0.00026534,2]
[337642734,1725905432637,-521.35785798,0.00027081,2]
[337642736,1725905432647,-166.666666,0.0002718,2]
[337642738,1725905432659,-961.412687,0.00027242,2]
[337642740,1725905432672,-250.0,0.00027253,2]
[337642743,1725905432682,-205.22138476,0.00027295,2]
[337642976,1725905438614,-1593.33686794,0.00027295,2]
[337642978,1725905438625,-243.708439,0.00027726,2]
[337642980,1725905438635,-243.708439,0.00027802,2]
[337642982,1725905438645,-243.708439,0.00027878,2]
[337642984,1725905438657,-187.12011987,0.000279,2]
[337642986,1725905438673,-300.0,0.00027911,2]
[337642988,1725905438683,-300.0,0.00027911,2]
[337642990,1725905438692,-193.0,0.00027911,15]
[337642992,1725905438702,-20908.48391768,0.00027912,2]
[337642995,1725905438714,-3991.51608232,0.00027912,2]
[337642997,1725905438723,-227.1291972,0.00027912,2]
[337642999,1725905438733,-243.708439,0.00027955,2]
[337643001,1725905438743,-243.708439,0.00028031,2]
[337643003,1725905438755,-243.708439,0.00028107,2]
[337643005,1725905438765,-243.708439,0.00028183,2]
[337643007,1725905438775,-243.708439,0.00028259,2]
[337643009,1725905438784,-243.708439,0.00028335,2]
[337643011,1725905438794,-243.708439,0.00028411,2]
[337643013,1725905438804,-166.666666,0.00028416,2]
[337643015,1725905438814,-243.708439,0.00028487,2]
[337643017,1725905438823,-243.708439,0.00028563,2]
[337643019,1725905438833,-243.708439,0.00028639,2]
[337643021,1725905438844,-243.708439,0.00028715,2]
[337643023,1725905438854,-166.757036,0.00028761,2]
[337643025,1725905438863,-243.708439,0.00028791,2]
[337643027,1725905438874,-243.708439,0.00028867,2]
[337643029,1725905438883,-206.56678937,0.00028941,2]
[337643031,1725905438894,-243.708439,0.00028943,2]
[337643033,1725905438904,-243.708439,0.00029019,2]
[337643035,1725905438914,-243.708439,0.00029095,2]
[337643037,1725905438925,-243.708439,0.00029171,2]
[337643039,1725905438935,-337.664868,0.00029225,2]
[337643042,1725905438947,-337.664868,0.00029232,2]
[337643044,1725905438957,-337.664868,0.0002924,2]
[337643046,1725905438968,-337.664868,0.00029248,2]
[337643048,1725905438978,-337.664868,0.00029255,2]
[337643050,1725905438988,-337.664868,0.00029263,2]
[337643052,1725905438998,-337.664868,0.00029271,2]
[337643054,1725905439007,-337.664868,0.00029278,2]
[337643056,1725905439016,-337.664868,0.00029286,2]
[337643058,1725905439026,-337.664868,0.00029294,2]
[337643060,1725905439035,-337.664868,0.00029301,2]
[337643062,1725905439045,-337.664868,0.00029309,2]
[337643064,1725905439055,-337.664868,0.00029317,2]
[337643066,1725905439065,-337.664868,0.00029325,2]
[337643068,1725905439074,-263.72925702,0.00029332,2]
[337643070,1725905439087,-73.93561098,0.00029332,2]
[337643072,1725905439096,-337.664868,0.0002934,2]
[337643074,1725905439106,-337.664868,0.00029348,2]
[337643076,1725905439116,-337.664868,0.00029355,2]
[337643078,1725905439125,-337.664868,0.00029363,2]
[337643080,1725905439135,-337.664868,0.00029371,2]
[337643082,1725905439144,-166.666666,0.00029651,2]
[337643084,1725905439154,-1500.0,0.0003,2]
[337643086,1725905439163,-248.0,0.0003,2]
[337643088,1725905439176,-420.0,0.00030147,2]
[337643090,1725905439186,-1500.0,0.00030364,2]
[337643092,1725905439196,-420.0,0.00030702,2]
[337643094,1725905439205,-1500.0,0.00030727,2]
[337643096,1725905439216,-166.666666,0.00030886,2]
[337643098,1725905439225,-2500.0,0.00031,2]
[337643100,1725905439234,-1500.0,0.00031091,2]
[337643102,1725905439244,-1500.0,0.00031455,2]
[337643104,1725905439254,-396.79471702,0.00031818,2]
[337643270,1725905440779,-1103.20528298,0.00031818,2]
[337643272,1725905440789,-1500.0,0.00032182,2]
[337643274,1725905440799,-1500.0,0.00032545,2]
[337643276,1725905440809,-500.0,0.00032877,2]
[337643278,1725905440819,-1500.0,0.00032909,2]
[337643280,1725905440829,-3000.0,0.00033,4]
[337643282,1725905440838,-1000.0,0.00033,33]
[337643284,1725905440848,-248.0,0.00033,2]
[337643286,1725905440857,-1500.0,0.00033273,2]
[337643288,1725905440867,-1219.12026453,0.00033636,2]
[337643290,1725905440877,-1000.0,0.00033678,2]
[337643292,1725905440887,-228.27028467,0.0003375,7]
[337643294,1725905440896,-500.0,0.0003375,7]
[337643296,1725905440905,-500.0,0.0003375,7]
[337643298,1725905440915,-500.0,0.0003375,7]
[337643300,1725905440925,-500.0,0.0003375,7]
[337643302,1725905440935,-500.0,0.0003375,7]
[337643304,1725905440945,-500.0,0.0003375,7]
[337643306,1725905440955,-500.0,0.0003375,7]
[337643308,1725905440964,-500.0,0.0003375,7]
[337643310,1725905440975,-500.0,0.0003375,7]
[337643312,1725905440984,-500.0,0.0003375,7]
[337643314,1725905440993,-500.0,0.0003375,7]
[337643316,1725905441003,-500.0,0.0003375,7]
[337643318,1725905441013,-500.0,0.0003375,7]
[337643320,1725905441022,-500.0,0.0003375,7]
[337643322,1725905441031,-500.0,0.0003375,7]
[337643324,1725905441041,-500.0,0.0003375,7]
[337643326,1725905441051,-553.7358282,0.0003375,7]
[337643328,1725905441061,-500.0,0.0003375,7]
[337643330,1725905441070,-500.0,0.0003375,7]
[337643332,1725905441080,-511.00541296,0.0003375,7]
[337643334,1725905441090,-500.0,0.0003375,7]
[337643336,1725905441101,-500.0,0.0003375,7]
[337643338,1725905441112,-500.0,0.0003375,7]
[337643340,1725905441122,-500.0,0.0003375,7]
[337643342,1725905441132,-500.0,0.0003375,7]
[337643344,1725905441142,-500.0,0.0003375,7]
[337643346,1725905441154,-500.0,0.0003375,7]
[337643348,1725905441163,-500.0,0.0003375,7]
[337643350,1725905441173,-500.0,0.0003375,7]
[337643352,1725905441183,-500.0,0.0003375,7]
[337643354,1725905441193,-500.0,0.0003375,7]
[337643355,1725905441202,-500.0,0.0003375,7]
[337643356,1725905441212,-500.0,0.0003375,7]
[337643357,1725905441221,-500.0,0.0003375,7]
[337643358,1725905441231,-500.0,0.0003375,7]
[337643359,1725905441243,-500.0,0.0003375,7]
[337643360,1725905441252,-500.0,0.0003375,7]
[337643361,1725905441261,-500.0,0.0003375,7]
[337643362,1725905441271,-500.0,0.0003375,7]
[337643363,1725905441281,-500.0,0.0003375,7]
[337643364,1725905441291,-500.0,0.0003375,7]
[337643365,1725905441300,-500.0,0.0003375,7]
[337643366,1725905441310,-500.0,0.0003375,7]
[337643367,1725905441320,-500.0,0.0003375,7]
[337643368,1725905441330,-500.0,0.0003375,7]
[337643369,1725905441340,-500.0,0.0003375,7]
[337643370,1725905441350,-500.0,0.0003375,7]
[337643371,1725905441360,-500.0,0.0003375,7]
[337643372,1725905441370,-500.0,0.0003375,7]
[337643373,1725905441380,-500.0,0.0003375,7]
[337643374,1725905441389,-500.0,0.0003375,7]
[337643375,1725905441398,-500.0,0.0003375,7]
[337643376,1725905441408,-500.0,0.0003375,7]
[337643378,1725905441418,-500.0,0.0003375,7]
[337643380,1725905441428,-500.0,0.0003375,7]
[337643382,1725905441436,-500.0,0.0003375,7]
[337643383,1725905441445,-500.0,0.0003375,7]
[337643385,1725905441454,-500.0,0.0003375,7]
[337643387,1725905441463,-500.0,0.0003375,7]
[337643389,1725905441472,-500.0,0.0003375,7]
[337643391,1725905441481,-500.0,0.0003375,7]
[337643393,1725905441491,-376.36874332,0.0003375,7]
[337645247,1725906523678,993.2218712,0.00020377,2]
[337645249,1725906571235,-956.18530307,0.0002509,2]
[337645267,1725906632220,-261.58856893,0.0002509,2]
[337645268,1725906632230,-1500.0,0.0003,2]
[337645269,1725906632239,-324.148558,0.00030338,2]